bitfinex/quotes_SOLUSD_20250313
["timestamp","ask_amount","ask_price","bid_price","bid_amount"]
[1741836599635,31.59213881,126.02,126.01,0.0001]
[1741836599961,8.07686157,126.03,126.01,0.0001]
[1741836600551,23.51477724,126.07,126.02,43.51477724]
[1741836600744,8.07436157,126.07,126.03,23.51477724]
[1741836600946,31.58913881,126.07,126.02,43.51477724]
[1741836601340,8.07436157,126.07,126.03,23.51477724]
[1741836601736,51.41933881,126.07,126.02,43.51477724]
[1741836601938,51.41933881,126.07,126.02,20.0]
[1741836602143,0.14216157,126.05,126.02,20.0]
[1741836602335,0.14216157,126.05,126.01,0.0001]
[1741836602733,0.14216157,126.05,126.01,23.51487724]
[1741836604074,7.9339,126.04,126.01,23.51487724]
[1741836604259,8.07566157,126.05,126.02,23.51477724]
[1741836604661,8.07566157,126.05,126.01,23.51487724]
[1741836605173,7.9325,126.07,126.04,23.51477724]
[1741836606671,0.063,126.08,126.04,23.51477724]
[1741836606864,7.9944,126.08,126.04,23.51477724]
[1741836608769,0.14216157,126.07,126.03,23.51477724]
[1741836608964,0.14216157,126.07,126.02,30.79477724]
[1741836609161,51.33777724,126.08,126.03,23.51477724]
[1741836609469,27.823,126.08,126.03,23.51477724]
[1741836609648,51.33777724,126.08,126.03,23.51477724]
[1741836610044,7.9944,126.08,126.04,23.51477724]
[1741836610749,0.063,126.08,126.04,23.51477724]
[1741836612070,0.063,126.08,126.02,7.28]
[1741836612268,0.14216157,126.05,126.01,0.0001]
[1741836612845,8.07546157,126.05,126.04,0.03]
[1741836613049,31.59023881,126.05,126.01,0.0001]
[1741836613277,51.42353881,126.05,126.01,0.0001]
[1741836614853,7.9333,126.05,126.01,23.51487724]
[1741836616056,27.7666,126.05,126.01,0.0001]
[1741836616262,0.14216157,126.04,126.01,0.0001]
[1741836617174,7.9346,126.03,126.01,0.0001]
[1741836617960,7.9346,126.03,126.01,23.51487724]
[1741836618272,7.9346,126.03,126.01,0.0001]
[1741836619174,0.14216157,126.02,126.01,0.0001]
[1741836619383,23.65693881,126.02,126.01,0.0001]
[1741836619876,0.14216157,126.02,126.01,0.0001]
[1741836620371,23.79910038,126.02,126.01,0.0001]
[1741836621445,50.38394924,126.02,126.01,0.0001]
[1741836621783,56.84768982,126.02,126.01,0.0001]
[1741836623349,76.68578982,126.02,125.98,0.0001]
[1741836623549,50.24368767,125.99,125.97,0.0001]
[1741836623773,23.65693881,125.98,125.97,0.0001]
[1741836624280,42.44874924,125.98,125.97,0.0001]
[1741836625658,50.38644924,125.98,125.97,0.0001]
[1741836633397,0.14216157,126.0,125.97,0.0001]
[1741836634079,31.45057724,126.01,125.97,0.0001]
[1741836634298,0.14216157,126.02,125.98,23.51477724]
[1741836635086,0.14216157,126.02,125.97,30.03357724]
[1741836635481,8.07786157,126.02,125.97,30.03357724]
[1741836635679,8.07786157,126.02,125.98,23.51477724]
[1741836636268,31.59263881,126.02,125.97,6.5188]
[1741836636484,8.07786157,126.02,125.97,50.03357724]
[1741836636887,0.063,126.0,125.97,50.03357724]
[1741836637096,23.57777724,126.0,125.97,20.0001]
[1741836637331,0.14216157,125.99,125.97,0.0001]
[1741836637594,7.9377,125.98,125.97,0.0001]
[1741836637790,31.73680038,125.98,125.97,0.0001]
[1741836638013,50.38644924,125.98,125.97,0.0001]
[1741836638367,18.933972,125.97,125.93,0.0001]
[1741836638584,23.79910038,125.94,125.93,0.0001]
[1741836638971,42.44874924,125.94,125.93,0.0001]
[1741836639593,50.38894924,125.94,125.93,0.0001]
[1741836642898,0.28432314,125.93,125.88,0.063]
[1741836643295,23.79910038,125.93,125.88,23.57777724]
[1741836643695,7.9415,125.92,125.88,23.57777724]
[1741836644285,7.941,125.93,125.89,23.51477724]
[1741836646206,7.941,125.93,125.88,43.57777724]
[1741836646587,0.14216157,125.92,125.88,20.063]
[1741836646785,0.14216157,125.9,125.88,0.063]
[1741836648383,7.9434,125.89,125.88,0.063]
[1741836649394,8.08556157,125.89,125.88,0.063]
[1741836651719,0.14216157,125.88,125.85,2.7618974]
[1741836651905,23.65693881,125.86,125.85,2.7618974]
[1741836652100,23.51477724,125.86,125.85,2.7618974]
[1741836652417,23.65693881,125.86,125.85,2.7618974]
[1741836652609,0.14216157,125.86,125.85,2.7618974]
[1741836652784,8.08746157,125.86,125.85,2.7618974]
[1741836653208,31.74440038,125.86,125.85,9.74e-05]
[1741836653410,0.28432314,125.85,125.81,0.0001]
[1741836653614,23.79910038,125.85,125.81,0.0001]
[1741836653802,0.28432314,125.85,125.81,0.0001]
[1741836654187,23.51477724,125.84,125.81,0.0001]
[1741836654388,0.14216157,125.85,125.81,0.0001]
[1741836654794,7.9465,125.84,125.81,0.0001]
[1741836654994,8.08826157,125.85,125.81,23.51487724]
[1741836655203,8.08826157,125.85,125.81,0.0001]
[1741836655726,31.60303881,125.85,125.81,0.0001]
[1741836655908,8.08826157,125.85,125.81,43.51487724]
[1741836657598,0.14216157,125.84,125.81,0.0001]
[1741836657816,0.14216157,125.82,125.81,0.0001]
[1741836658119,23.79910038,125.82,125.81,0.0001]
[1741836658903,31.74690038,125.82,125.81,0.0001]
[1741836659109,23.51477724,125.84,125.81,0.0001]
[1741836659308,7.9473,125.83,125.81,0.0001]
[1741836660733,0.14216157,125.87,125.82,23.51477724]
[1741836660906,0.063,125.93,125.85,23.51477724]
[1741836661106,0.20516157,125.93,125.88,23.51477724]
[1741836661299,7.9415,125.92,125.89,23.51477724]
[1741836661809,7.9415,125.92,125.88,43.51477724]
[1741836662119,7.9415,125.92,125.86,23.51477724]
[1741836662120,0.14216157,125.91,125.86,23.51477724]
[1741836662333,0.14216157,125.91,125.87,37.67380858]
[1741836662703,7.9415,125.92,125.87,37.67380858]
[1741836662896,0.14216157,125.89,125.85,7.28]
[1741836663101,0.14216157,125.89,125.83,6.0314]
[1741836663102,0.14216157,125.87,125.83,6.0314]
[1741836663318,0.14216157,125.89,125.84,37.67380858]
[1741836663523,0.14216157,125.87,125.83,43.70520858]
[1741836664023,0.14216157,125.89,125.84,37.67380858]
[1741836664212,37.95813172,125.89,125.84,37.67380858]
[1741836664403,37.95813172,125.89,125.83,43.70520858]
[1741836665023,7.944,125.88,125.84,37.67380858]
[1741836665399,7.944,125.88,125.83,43.70520858]
[1741836665597,0.28432314,125.87,125.82,37.67380858]
[1741836665817,0.14216157,125.85,125.81,0.0001]
[1741836666014,0.14216157,125.85,125.83,20.0]
[1741836666618,56.60778058,125.87,125.83,20.0]
[1741836666822,15.224,125.88,125.83,57.67380858]
[1741836667021,7.944,125.88,125.84,37.67380858]
[1741836667433,7.9428,125.9,125.86,37.67380858]
[1741836667633,7.9428,125.9,125.85,37.67380858]
[1741836667929,0.14216157,125.89,125.85,37.67380858]
[1741836668627,37.95813172,125.89,125.84,81.751737]
[1741836668921,0.14216157,125.87,125.83,44.95380858]
[1741836669129,7.9453,125.86,125.83,44.95380858]
[1741836669630,7.9453,125.86,125.83,64.95380858]
[1741836669809,7.9453,125.86,125.83,20.0]
[1741836670417,0.14216157,125.85,125.83,20.0]
[1741836671742,7.9465,125.84,125.83,20.0]
[1741836672100,19.8633,125.86,125.83,57.67380858]
[1741836672101,7.9453,125.86,125.83,57.67380858]
[1741836672724,37.67380858,125.88,125.83,57.67380858]
[1741836672725,7.944,125.88,125.84,37.67380858]
[1741836673326,0.063,125.85,125.84,37.67380858]
[1741836673706,0.063,125.85,125.84,127.37204558]
[1741836674124,0.063,125.85,125.84,133.87304558]
[1741836675235,7.943,125.9,125.84,152.80701758]
[1741836675411,7.9416,125.92,125.89,37.67380858]
[1741836675607,0.063,125.93,125.91,37.67380858]
[1741836675907,0.063,125.93,125.92,57.67380858]
[1741836679023,0.063,125.93,125.9,44.95380858]
[1741836679232,0.063,125.93,125.9,37.67380858]
[1741836679747,0.063,125.93,125.89,37.67380858]
[1741836679945,8.0039,125.93,125.89,37.67380858]
[1741836680337,0.28432314,125.92,125.87,210.28]
[1741836680644,0.14216157,125.9,125.85,37.67380858]
[1741836681028,0.14216157,125.89,125.85,37.67380858]
[1741836681236,0.14216157,125.89,125.84,37.67380858]
[1741836681746,0.14216157,125.87,125.83,37.67380858]
[1741836681929,7.9453,125.86,125.82,37.67380858]
[1741836682382,0.14216157,125.85,125.81,0.0001]
[1741836682533,65.48240858,125.86,125.81,37.67390858]
[1741836682734,0.14216157,125.85,125.81,0.0001]
[1741836682948,0.14216157,125.85,125.81,37.67390858]
[1741836683328,0.14216157,125.85,125.82,37.67380858]
[1741836684062,0.14216157,125.87,125.83,57.67380858]
[1741836684345,7.944,125.88,125.85,37.67380858]
[1741836684544,7.944,125.88,125.86,37.67380858]
[1741836684949,7.944,125.88,125.85,37.67380858]
[1741836685131,7.944,125.88,125.84,37.67380858]
[1741836685454,37.95813172,125.87,125.82,37.67380858]
[1741836685629,0.14216157,125.85,125.81,37.67390858]
[1741836686551,7.9465,125.84,125.81,37.67390858]
[1741836687149,7.9465,125.84,125.81,0.0001]
[1741836687735,37.81597015,125.83,125.81,0.0001]
[1741836688051,0.14216157,125.83,125.81,0.0001]
[1741836688752,8.23212314,125.82,125.81,0.0001]
[1741836689051,8.08996157,125.82,125.81,0.0001]
[1741836690456,7.9453,125.86,125.81,57.67390858]
[1741836690763,7.9465,125.84,125.81,57.67390858]
[1741836691051,7.9421,125.91,125.86,20.0]
[1741836691351,7.9421,125.91,125.88,37.67380858]
[1741836691648,7.9421,125.91,125.87,37.67380858]
[1741836692755,7.9421,125.91,125.88,37.67380858]
[1741836693556,7.9421,125.91,125.87,57.67380858]
[1741836693742,7.9421,125.91,125.88,37.67380858]
[1741836694142,7.9421,125.91,125.87,20.0]
[1741836694350,7.9421,125.91,125.88,37.67380858]
[1741836695781,0.20516157,125.92,125.9,37.67380858]
[1741836695782,0.063,125.92,125.9,37.67380858]
[1741836696263,0.063,125.92,125.87,27.36]
[1741836696473,0.063,125.92,125.89,37.67380858]
[1741836696960,0.14216157,125.9,125.85,37.67380858]
[1741836697138,0.14216157,125.9,125.83,6.2197]
[1741836697139,0.14216157,125.88,125.83,37.67380858]
[1741836697471,37.81597015,125.88,125.85,20.0]
[1741836697658,37.81597015,125.88,125.82,37.67380858]
[1741836697840,37.81597015,125.88,125.83,20.0]
[1741836698364,0.28432314,125.86,125.83,20.0]
[1741836698541,37.95813172,125.86,125.81,0.0001]
[1741836699348,37.95813172,125.86,125.81,37.67390858]
[1741836699859,0.14216157,125.83,125.81,0.0001]
[1741836700057,27.8129,125.84,125.81,0.0001]
[1741836700257,0.14216157,125.81,125.8,3.7e-05]
[1741836700562,37.81597015,125.81,125.8,3.7e-05]
[1741836700748,0.14216157,125.81,125.8,3.7e-05]
[1741836701339,37.81597015,125.81,125.8,3.7e-05]
[1741836701538,0.14216157,125.81,125.8,3.7e-05]
[1741836701843,37.81597015,125.81,125.8,3.7e-05]
[1741836702252,45.76437015,125.81,125.8,3.7e-05]
[1741836702453,8.09056157,125.81,125.8,3.7e-05]
[1741836703062,64.55618058,125.81,125.8,3.7e-05]
[1741836704155,18.79181043,125.8,125.79,3.7e-05]
[1741836704343,63.23168058,125.8,125.79,3.7e-05]
[1741836704743,2.14216157,125.79,125.76,3.7e-05]
[1741836704955,18.933972,125.76,125.75,3.7e-05]
[1741836705153,56.60778058,125.76,125.75,3.7e-05]
[1741836705349,0.14216157,125.75,125.69,37.67380858]
[1741836705549,0.28432314,125.73,125.69,37.67380858]
[1741836705849,18.933972,125.73,125.68,37.70380858]
[1741836706057,37.95813172,125.73,125.68,0.03]
[1741836706257,0.14216157,125.71,125.68,0.03]
[1741836706450,37.95813172,125.71,125.68,0.03]
[1741836706653,0.28432314,125.71,125.68,0.03]
[1741836707063,0.14216157,125.71,125.68,0.03]
[1741836707267,7.9541,125.72,125.68,57.70380858]
[1741836707570,37.95813172,125.73,125.69,20.0]
[1741836707571,8.09576157,125.73,125.69,20.0]
[1741836707772,8.09576157,125.73,125.69,57.67380858]
[1741836708470,8.09576157,125.73,125.69,20.0]
[1741836708654,0.14216157,125.75,125.7,37.67380858]
[1741836708844,18.79181043,125.74,125.69,57.67380858]
[1741836709073,56.46561901,125.74,125.69,37.67380858]
[1741836709247,0.14216157,125.72,125.68,0.03]
[1741836709651,0.14216157,125.71,125.69,20.0]
[1741836709848,0.14216157,125.72,125.69,20.0]
[1741836710567,0.14216157,125.71,125.69,20.0]
[1741836711872,8.09676157,125.72,125.69,57.67380858]
[1741836711873,7.9546,125.72,125.69,57.67380858]
[1741836712047,7.9546,125.72,125.69,20.0]
[1741836712479,0.14216157,125.71,125.69,20.0]
[1741836713780,7.9541,125.72,125.69,20.0]
[1741836713781,8.09586157,125.73,125.69,20.0]
[1741836713964,8.09586157,125.73,125.69,57.67380858]
[1741836715059,8.09586157,125.73,125.69,20.0]
[1741836715270,8.09586157,125.73,125.69,57.67380858]
[1741836715962,8.09586157,125.73,125.69,20.0]
[1741836716163,8.09586157,125.73,125.69,57.67380858]
[1741836716672,0.14216157,125.75,125.7,37.67380858]
[1741836716978,0.14216157,125.74,125.71,37.67380858]
[1741836717154,0.14216157,125.74,125.69,27.956]
[1741836717357,0.14216157,125.74,125.71,37.67380858]
[1741836719255,7.9533,125.74,125.71,37.67380858]
[1741836719894,0.14216157,125.76,125.71,20.0]
[1741836720082,8.09386157,125.76,125.72,37.67380858]
[1741836720273,0.14216157,125.76,125.73,37.67380858]
[1741836720470,8.23272314,125.81,125.75,37.67380858]
[1741836720775,8.23272314,125.81,125.77,37.67380858]
[1741836721755,8.23272314,125.81,125.76,37.67380858]
[1741836723078,8.09056157,125.81,125.78,37.67380858]
[1741836723980,8.09056157,125.81,125.77,37.67380858]
[1741836724167,8.09056157,125.81,125.76,57.67380858]
[1741836724372,8.09056157,125.81,125.77,37.67380858]
[1741836726073,8.09056157,125.81,125.78,37.67380858]
[1741836726380,7.9479,125.82,125.79,37.67380858]
[1741836726771,0.14216157,125.83,125.79,37.67380858]
[1741836727080,8.08956157,125.83,125.81,37.67380858]
[1741836727287,8.08956157,125.83,125.8,37.67380858]
[1741836730779,7.9474,125.83,125.8,37.67380858]
[1741836732185,0.14216157,125.82,125.76,90.808637]
[1741836732398,0.14216157,125.79,125.73,83.411137]
[1741836732579,0.14216157,125.79,125.75,37.67380858]
[1741836732890,37.81597015,125.8,125.75,37.67380858]
[1741836733386,0.14216157,125.8,125.75,37.67380858]
[1741836733591,7.9497,125.79,125.77,37.67380858]
[1741836733894,7.9497,125.79,125.76,57.67380858]
[1741836734279,7.9497,125.79,125.76,20.0]
[1741836734489,7.9497,125.79,125.76,57.67380858]
[1741836734786,7.9484,125.81,125.77,37.67380858]
[1741836734973,7.9484,125.81,125.78,37.67380858]
[1741836735495,7.60216157,125.84,125.79,37.67380858]
[1741836735685,0.28432314,125.84,125.8,37.67380858]
[1741836735869,7.9472,125.83,125.79,37.67380858]
[1741836736076,0.14216157,125.82,125.78,37.67380858]
[1741836736391,0.14216157,125.82,125.76,101.751737]
[1741836736392,56.60778058,125.82,125.76,37.67380858]
[1741836736789,56.60778058,125.82,125.77,37.67380858]
[1741836737575,0.14216157,125.8,125.77,37.67380858]
[1741836738294,0.14216157,125.8,125.78,37.67380858]
[1741836739796,0.14216157,125.8,125.77,20.0]
[1741836739975,37.95813172,125.8,125.76,20.0]
[1741836740394,27.8196,125.81,125.69,0.03]
[1741836740395,0.14216157,125.76,125.69,0.03]
[1741836740592,18.933972,125.69,125.68,0.03]
[1741836740913,64.04778058,125.69,125.61,37.67380858]
[1741836741196,0.28432314,125.66,125.61,37.67380858]
[1741836741398,0.14216157,125.64,125.6,2.8247458]
[1741836741599,0.14216157,125.63,125.6,2.8247458]
[1741836741782,7.9605,125.62,125.6,2.8247458]
[1741836742182,0.14216157,125.61,125.6,2.8247458]
[1741836742444,37.95813172,125.61,125.6,2.8247458]
[1741836743084,37.95813172,125.61,125.6,2.8547458]
[1741836743287,0.28432314,125.61,125.6,2.8547458]
[1741836743495,37.95813172,125.61,125.6,2.8547458]
[1741836744004,45.91923172,125.61,125.6,2.8547458]
[1741836744383,45.91923172,125.61,125.56,0.03]
[1741836744787,37.81597015,125.6,125.56,0.03]
[1741836745101,37.95813172,125.58,125.56,0.03]
[1741836745287,0.14216157,125.56,125.51,37.67380858]
[1741836745487,37.95813172,125.56,125.52,20.0]
[1741836745685,0.14216157,125.55,125.52,20.0]
[1741836745880,8.10726157,125.55,125.52,20.0]
[1741836746086,8.10726157,125.55,125.51,37.67380858]
[1741836746281,8.10726157,125.55,125.5,37.67380858]
[1741836747000,8.10726157,125.55,125.51,37.67380858]
[1741836747986,0.14216157,125.55,125.52,37.67380858]
[1741836748704,0.14216157,125.55,125.51,37.67380858]
[1741836748887,8.10726157,125.55,125.51,37.67380858]
[1741836749203,0.14216157,125.55,125.51,37.67380858]
[1741836749400,8.10726157,125.55,125.51,37.67380858]
[1741836749703,0.14216157,125.55,125.51,37.67380858]
[1741836750009,8.10726157,125.55,125.51,37.67380858]
[1741836750410,8.10726157,125.55,125.5,20.0]
[1741836750583,8.10726157,125.55,125.5,57.67380858]
[1741836750785,8.10726157,125.55,125.51,37.67380858]
[1741836750999,7.9651,125.55,125.51,37.67380858]
[1741836751201,7.9651,125.55,125.52,37.67380858]
[1741836751393,0.28432314,125.54,125.5,57.67380858]
[1741836751788,0.28432314,125.54,125.5,20.0]
[1741836751988,0.28432314,125.54,125.5,57.67380858]
[1741836751989,0.14216157,125.53,125.5,57.67380858]
[1741836754398,7.9664,125.53,125.51,37.67380858]
[1741836754591,7.9664,125.53,125.5,20.0]
[1741836754794,7.9664,125.53,125.5,57.67380858]
[1741836755688,7.9664,125.53,125.5,57.70380858]
[1741836755894,7.9664,125.53,125.5,20.03]
[1741836756104,7.9664,125.53,125.5,57.70380858]
[1741836756886,12.21815859,125.54,125.5,57.70380858]
[1741836757095,12.21815859,125.54,125.51,37.67380858]
[1741836757490,8.10716157,125.55,125.51,37.67380858]
[1741836758310,8.10716157,125.55,125.5,37.67380858]
[1741836758717,8.10716157,125.55,125.51,37.67380858]
[1741836758917,8.10716157,125.55,125.5,37.67380858]
[1741836759717,7.965,125.55,125.51,57.67380858]
[1741836760009,0.063,125.56,125.53,37.67380858]
[1741836760213,0.063,125.56,125.54,37.67380858]
[1741836760416,0.063,125.56,125.55,37.67380858]
[1741836761619,0.063,125.56,125.55,20.0]
[1741836761796,0.063,125.56,125.55,57.17380858]
[1741836763006,0.063,125.56,125.55,19.5]
[1741836763397,0.063,125.56,125.55,57.17380858]
[1741836763721,0.063,125.56,125.55,19.5]
[1741836764324,0.063,125.56,125.55,57.17380858]
[1741836766311,0.063,125.56,125.55,65.13870858]
[1741836766510,0.063,125.56,125.55,57.17380858]
[1741836768413,0.063,125.56,125.54,37.67380858]
[1741836768612,0.063,125.56,125.55,37.67380858]
[1741836773126,0.063,125.56,125.54,20.0]
[1741836773310,0.063,125.56,125.54,57.67380858]
[1741836774423,0.063,125.56,125.54,20.0]
[1741836774729,0.063,125.56,125.51,82.81313017]
[1741836774730,0.063,125.56,125.55,20.0]
[1741836775228,0.063,125.56,125.53,37.67380858]
[1741836776130,0.063,125.56,125.53,20.0]
[1741836776325,0.063,125.56,125.53,57.67380858]
[1741836777911,0.063,125.56,125.55,37.67380858]
[1741836778717,0.063,125.56,125.55,20.0]
[1741836778920,0.063,125.56,125.55,57.67380858]
[1741836780343,0.063,125.56,125.55,65.63870858]
[1741836780553,0.063,125.56,125.55,73.07870858]
[1741836780910,0.063,125.56,125.55,65.11380858]
[1741836781915,0.063,125.56,125.55,73.07870858]
[1741836782235,0.063,125.56,125.55,59.0633739]
[1741836782736,9.6235,125.64,125.59,20.0]
[1741836782942,9.6235,125.64,125.56,18.64964886]
[1741836782943,9.6235,125.64,125.6,23.6584739]
[1741836783235,14.08,125.66,125.62,23.6584739]
[1741836783617,14.08,125.66,125.58,20.0]
[1741836783618,0.14216157,125.63,125.58,20.0]
[1741836783929,0.14216157,125.63,125.58,43.6584739]
[1741836784322,7.9605,125.62,125.58,57.84893766]
[1741836784620,7.9605,125.62,125.59,37.84893766]
[1741836784942,7.9605,125.62,125.58,57.84893766]
[1741836785319,0.14216157,125.61,125.58,20.0]
[1741836785717,0.14216157,125.61,125.58,57.84893766]
[1741836785912,0.14216157,125.65,125.6,37.84893766]
[1741836786113,7.9586,125.65,125.62,37.84893766]
[1741836786329,14.08,125.66,125.63,37.84893766]
[1741836786532,9.72496157,125.67,125.63,37.84893766]
[1741836787117,0.14216157,125.66,125.62,57.84893766]
[1741836787312,0.14216157,125.66,125.62,37.84893766]
[1741836787539,0.14216157,125.66,125.63,37.84893766]
[1741836788628,178.28618419,125.69,125.65,37.84893766]
[1741836788943,170.32998419,125.69,125.66,37.84893766]
[1741836789149,170.32998419,125.69,125.68,37.84893766]
[1741836789445,178.28608419,125.69,125.66,57.84893766]
[1741836789647,0.063,125.69,125.67,37.84893766]
[1741836790827,0.063,125.69,125.66,20.0]
[1741836791020,0.063,125.69,125.66,37.84893766]
[1741836792223,0.063,125.69,125.68,37.84893766]
[1741836793225,0.063,125.69,125.68,20.0]
[1741836793434,0.063,125.69,125.67,20.0]
[1741836794048,0.063,125.69,125.67,57.84893766]
[1741836794462,0.063,125.69,125.68,37.84893766]
[1741836796050,0.063,125.69,125.68,20.0]
[1741836796638,0.063,125.69,125.66,57.84893766]
[1741836797833,0.063,125.69,125.67,37.84893766]
[1741836798335,0.063,125.69,125.66,20.0]
[1741836798336,0.063,125.69,125.68,20.0]
[1741836798636,0.063,125.69,125.68,57.84893766]
[1741836806360,0.063,125.69,125.68,43.61979777]
[1741836808767,0.063,125.69,125.68,51.57649777]
[1741836810469,0.063,125.69,125.68,70.22614663]
[1741836810969,0.063,125.69,125.68,272.94413837]
[1741836811967,1.6544,125.76,125.68,272.94413837]
[1741836812167,9.6062,125.76,125.72,23.61979777]
[1741836812476,9.6062,125.76,125.71,43.61979777]
[1741836813263,9.6062,125.76,125.72,23.61979777]
[1741836813568,29.4853,125.76,125.71,43.61979777]
[1741836814357,29.4853,125.76,125.72,23.61979777]
[1741836816282,29.4853,125.76,125.71,43.61979777]
[1741836816587,9.6062,125.76,125.72,23.61979777]
[1741836817085,9.6692,125.76,125.73,23.61979777]
[1741836817385,9.6692,125.76,125.72,23.61979777]
[1741836817574,9.6692,125.76,125.73,23.61979777]
[1741836818161,9.6692,125.76,125.72,43.61979777]
[1741836819894,29.5483,125.76,125.72,20.0]
[1741836820385,29.5483,125.76,125.72,43.61979777]
[1741836820894,29.5483,125.76,125.71,43.61979777]
[1741836822971,0.14216157,125.75,125.71,43.61979777]
[1741836823994,9.6692,125.76,125.71,43.61979777]
[1741836824178,9.6692,125.76,125.72,23.61979777]
[1741836825695,9.6692,125.76,125.73,23.61979777]
[1741836827285,29.5483,125.76,125.71,20.0]
[1741836827489,9.6692,125.76,125.71,43.61979777]
[1741836827783,0.14216157,125.75,125.71,43.61979777]
[1741836828794,7.9529,125.74,125.71,43.61979777]
[1741836828998,9.6691,125.76,125.72,23.61979777]
[1741836829181,9.6691,125.76,125.73,23.61979777]
[1741836829382,9.6691,125.76,125.71,20.0]
[1741836829695,9.6691,125.76,125.72,43.61979777]
[1741836830574,23.61979777,125.73,125.69,0.03]
[1741836831080,7.9541,125.72,125.69,0.03]
[1741836834407,7.9535,125.73,125.69,43.64979777]
[1741836835810,23.90412091,125.75,125.69,43.64979777]
[1741836835998,7.9529,125.74,125.69,43.64979777]
[1741836837309,7.9529,125.74,125.7,23.61979777]
[1741836837611,1.7174,125.76,125.71,23.61979777]
[1741836837808,9.6692,125.76,125.72,23.61979777]
[1741836838392,9.6692,125.76,125.73,23.61979777]
[1741836838594,1.7174,125.76,125.73,23.61979777]
[1741836838813,9.6692,125.76,125.72,23.61979777]
[1741836841098,9.6692,125.76,125.73,23.61979777]
[1741836841495,9.6691,125.76,125.73,23.61979777]
[1741836841990,9.6691,125.76,125.72,23.61979777]
[1741836844432,53.16799777,125.76,125.71,74.67583017]
[1741836844714,53.16799777,125.76,125.71,67.37583017]
[1741836845501,23.76195934,125.73,125.69,0.03]
[1741836845729,23.61979777,125.73,125.69,0.03]
[1741836846332,23.76195934,125.72,125.69,0.03]
[1741836847564,7.9548,125.71,125.69,0.03]
[1741836848218,31.57459777,125.71,125.69,0.03]
[1741836848401,25.28069777,125.7,125.69,0.03]
[1741836848601,25.42285934,125.7,125.69,0.03]
[1741836849417,33.23609777,125.7,125.69,0.03]
[1741836849721,33.37825934,125.7,125.69,0.03]
[1741836849916,33.37825934,125.7,125.61,15.7653]
[1741836849917,0.14216157,125.64,125.58,12.25139898]
[1741836850101,23.61979777,125.6,125.58,12.25139898]
[1741836850296,50.36726977,125.59,125.58,9.898e-05]
[1741836851122,0.14216157,125.58,125.57,9.695e-05]
[1741836851321,31.72495934,125.58,125.57,9.695e-05]
[1741836852404,7.963,125.58,125.56,0.03]
[1741836852603,39.53795934,125.59,125.56,0.03]
[1741836853013,7.8135,125.59,125.56,0.03]
[1741836853322,0.14216157,125.62,125.57,23.61979777]
[1741836853504,7.9611,125.61,125.57,23.61979777]
[1741836853823,31.58089777,125.61,125.56,23.64979777]
[1741836854125,31.58089777,125.61,125.56,0.03]
[1741836854427,23.61979777,125.6,125.56,0.03]
[1741836854634,31.58089777,125.61,125.56,0.03]
[1741836854930,31.55329777,125.63,125.57,23.61979777]
[1741836855133,39.51319777,125.63,125.58,23.61979777]
[1741836855510,8.10316157,125.62,125.57,90.99562794]
[1741836856006,31.72295934,125.62,125.57,90.99562794]
[1741836857720,31.72295934,125.62,125.57,67.37583017]
[1741836857917,23.61979777,125.61,125.57,67.37583017]
[1741836858236,31.72295934,125.62,125.57,67.37583017]
[1741836858533,31.72295934,125.62,125.56,30.94979777]
[1741836859133,31.72295934,125.62,125.57,23.61979777]
[1741836862016,8.10316157,125.62,125.57,23.61979777]
[1741836862238,0.14216157,125.62,125.57,23.61979777]
[1741836862439,0.14216157,125.62,125.58,23.61979777]
[1741836863037,7.9606,125.62,125.57,23.61979777]
[1741836863210,7.9335,125.63,125.58,23.61979777]
[1741836863419,8.10076157,125.65,125.6,23.61979777]
[1741836864022,23.61979777,125.66,125.61,23.61979777]
[1741836864217,15.741,125.67,125.62,23.61979777]
[1741836864420,15.741,125.67,125.63,23.61979777]
[1741836864620,9.5793,125.67,125.63,23.61979777]
[1741836864917,28.07885859,125.7,125.66,23.61979777]
[1741836865118,51.69865636,125.7,125.65,23.61979777]
[1741836865935,28.07885859,125.7,125.65,23.61979777]
[1741836866652,39.48049777,125.7,125.65,23.61979777]
[1741836867046,0.14216157,125.69,125.64,23.61979777]
[1741836867250,23.61979777,125.69,125.64,23.61979777]
[1741836867426,7.9052,125.7,125.66,23.61979777]
[1741836867633,7.9052,125.7,125.65,23.61979777]